[Event "Titled Tuesday Blitz May 2 Early 2023"]
[White "Molina, Roberto Junio Brito"]
[Black "Karwowski, Kacper"]
[WhiteFideId "2109450"]
[BlackFideId "1126032"]
[WhiteElo "2376"]
[BlackElo "2261"]
[Result "1-0"]
[Round "05"]
[TimeControl "180+2"]
[Date "2023.05.02"]
[WhiteClock "0:00:11"]
[BlackClock "0:00:03"]

1. d4 {[%clk 0:03:00]}  Nf6 {[%clk 0:02:59]} 2. Nf3 {[%clk 0:03:00]}  d5 {[%clk 0:02:58]} 3. e3 {[%clk 0:02:59]}  c6 {[%clk 0:02:56]} 4. Be2 {[%clk 0:02:58]}  Bf5 {[%clk 0:02:55]} 5. O-O {[%clk 0:02:58]}  h6 {[%clk 0:02:55]} 6. b3 {[%clk 0:02:57]}  e6 {[%clk 0:02:55]} 7. Bb2 {[%clk 0:02:56]}  Nbd7 {[%clk 0:02:56]} 8. c4 {[%clk 0:02:56]}  Bd6 {[%clk 0:02:56]} 9. Bd3 {[%clk 0:02:56]}  Bxd3 {[%clk 0:02:54]} 10. Qxd3 {[%clk 0:02:57]}  Qe7 {[%clk 0:02:52]} 11. Nbd2 {[%clk 0:02:56]}  Rd8 {[%clk 0:02:51]} 12. e4 {[%clk 0:02:56]}  dxe4 {[%clk 0:02:44]} 13. Nxe4 {[%clk 0:02:57]}  Nxe4 {[%clk 0:02:45]} 14. Qxe4 {[%clk 0:02:57]}  Nf6 {[%clk 0:02:45]} 15. Qe2 {[%clk 0:02:57]}  O-O {[%clk 0:02:45]} 16. Rad1 {[%clk 0:02:56]}  a5 {[%clk 0:02:45]} 17. a4 {[%clk 0:02:56]}  Rfe8 {[%clk 0:02:41]} 18. Rd3 {[%clk 0:02:55]}  Rb8 {[%clk 0:02:20]} 19. Bc3 {[%clk 0:02:52]}  Qc7 {[%clk 0:02:19]} 20. Rfd1 {[%clk 0:02:50]}  b5 {[%clk 0:02:15]} 21. axb5 {[%clk 0:02:49]}  cxb5 {[%clk 0:02:16]} 22. c5 {[%clk 0:02:44]}  Bf8 {[%clk 0:02:15]} 23. Ra1 {[%clk 0:02:37]}  b4 {[%clk 0:02:11]} 24. Bd2 {[%clk 0:02:36]}  Nd5 {[%clk 0:02:12]} 25. Ne5 {[%clk 0:02:32]}  Rbd8 {[%clk 0:02:11]} 26. Nc4 {[%clk 0:02:29]}  Ra8 {[%clk 0:01:58]} 27. Ra4 {[%clk 0:02:25]}  Red8 {[%clk 0:01:56]} 28. g3 {[%clk 0:02:20]}  g6 {[%clk 0:01:37]} 29. Qe5 {[%clk 0:02:12]}  Qxe5 {[%clk 0:01:17]} 30. Nxe5 {[%clk 0:02:12]}  Nc7 {[%clk 0:01:13]} 31. Nc6 {[%clk 0:02:08]}  Rd5 {[%clk 0:01:08]} 32. Bf4 {[%clk 0:02:03]}  Nb5 {[%clk 0:01:02]} 33. Nxb4 {[%clk 0:01:47]}  Rxd4 {[%clk 0:00:56]} 34. Rxd4 {[%clk 0:01:45]}  Nxd4 {[%clk 0:00:57]} 35. Nd3 {[%clk 0:01:29]}  Nxb3 {[%clk 0:00:52]} 36. Be3 {[%clk 0:01:26]}  Rc8 {[%clk 0:00:43]} 37. Kf1 {[%clk 0:01:21]}  Rc7 {[%clk 0:00:37]} 38. Rc4 {[%clk 0:01:19]}  a4 {[%clk 0:00:28]} 39. Rxa4 {[%clk 0:01:14]}  Nxc5 {[%clk 0:00:26]} 40. Nxc5 {[%clk 0:01:13]}  Bxc5 {[%clk 0:00:27]} 41. Bxh6 {[%clk 0:01:11]}  Be7 {[%clk 0:00:21]} 42. Ra8+ {[%clk 0:01:06]}  Kh7 {[%clk 0:00:21]} 43. Be3 {[%clk 0:01:07]}  Bf6 {[%clk 0:00:20]} 44. Ra2 {[%clk 0:01:05]}  Rb7 {[%clk 0:00:19]} 45. h4 {[%clk 0:01:03]}  Kg7 {[%clk 0:00:20]} 46. Kg2 {[%clk 0:01:03]}  Rd7 {[%clk 0:00:20]} 47. Kf3 {[%clk 0:01:03]}  Rb7 {[%clk 0:00:20]} 48. Ra4 {[%clk 0:01:03]}  Rd7 {[%clk 0:00:20]} 49. Ra5 {[%clk 0:01:03]}  Rd5 {[%clk 0:00:18]} 50. Ra7 {[%clk 0:01:00]}  e5 {[%clk 0:00:16]} 51. Ke4 {[%clk 0:00:59]}  Rb5 {[%clk 0:00:16]} 52. Ra4 {[%clk 0:00:59]}  Rb3 {[%clk 0:00:14]} 53. Rc4 {[%clk 0:00:55]}  Rb5 {[%clk 0:00:13]} 54. Bd2 {[%clk 0:00:51]}  Rb2 {[%clk 0:00:12]} 55. Be3 {[%clk 0:00:51]}  Rb3 {[%clk 0:00:11]} 56. Bc1 {[%clk 0:00:49]}  Rb1 {[%clk 0:00:09]} 57. Rc6 {[%clk 0:00:45]}  Rb4+ {[%clk 0:00:08]} 58. Kf3 {[%clk 0:00:45]}  Rb3+ {[%clk 0:00:07]} 59. Ke2 {[%clk 0:00:46]}  Rb5 {[%clk 0:00:06]} 60. Bd2 {[%clk 0:00:44]}  Rd5 {[%clk 0:00:06]} 61. Bc3 {[%clk 0:00:43]}  Rb5 {[%clk 0:00:06]} 62. Kd3 {[%clk 0:00:42]}  Be7 {[%clk 0:00:04]} 63. f4 {[%clk 0:00:39]}  f6 {[%clk 0:00:02]} 64. fxe5 {[%clk 0:00:38]}  fxe5 {[%clk 0:00:03]} 65. Ke4 {[%clk 0:00:37]}  Bf6 {[%clk 0:00:02]} 66. Rc7+ {[%clk 0:00:36]}  Kg8 {[%clk 0:00:02]} 67. h5 {[%clk 0:00:24]}  gxh5 {[%clk 0:00:03]} 68. Kf5 {[%clk 0:00:25]}  Bg7 {[%clk 0:00:02]} 69. Kg6 {[%clk 0:00:23]}  Rb6+ {[%clk 0:00:02]} 70. Kxh5 {[%clk 0:00:23]}  Re6 {[%clk 0:00:02]} 71. Kg4 {[%clk 0:00:21]}  Bf6 {[%clk 0:00:03]} 72. Kf5 {[%clk 0:00:21]}  Rb6 {[%clk 0:00:03]} 73. g4 {[%clk 0:00:19]}  Bg7 {[%clk 0:00:04]} 74. g5 {[%clk 0:00:19]}  Ra6 {[%clk 0:00:04]} 75. Rc8+ {[%clk 0:00:17]}  Kf7 {[%clk 0:00:02]} 76. g6+ {[%clk 0:00:15]}  Ke7 {[%clk 0:00:03]} 77. Rc7+ {[%clk 0:00:16]}  Kf8 {[%clk 0:00:03]} 78. Bb4+ {[%clk 0:00:15]}  Kg8 {[%clk 0:00:02]} 79. Rc8+ {[%clk 0:00:15]}  Bf8 {[%clk 0:00:02]} 80. Rxf8+ {[%clk 0:00:15]}  Kg7 {[%clk 0:00:03]} 81. Rf7+ {[%clk 0:00:16]}  Kg8 {[%clk 0:00:02]} 82. Re7 {[%clk 0:00:13]}  e4 {[%clk 0:00:03]} 83. Bc3 {[%clk 0:00:11]}  Ra8 {[%clk 0:00:02]} 84. Bf6 {[%clk 0:00:11]}  e3 {[%clk 0:00:02]} 85. Rxe3 {[%clk 0:00:10]}  Rf8 {[%clk 0:00:01]} 86. Kg5 {[%clk 0:00:11]}  Rc8 {[%clk 0:00:01]} 87. Re5 {[%clk 0:00:10]}  Rb8 {[%clk 0:00:02]} 88. Kh6 {[%clk 0:00:10]}  Rc8 {[%clk 0:00:02]} 89. Re6 {[%clk 0:00:10]}  Rb8 {[%clk 0:00:02]} 90. Re7 {[%clk 0:00:11]}  Rc8 {[%clk 0:00:03]} 91. Rh7 {[%clk 0:00:11]} 1-0


[Site "https://www.chess.com"]

[Event "Titled Tuesday Blitz May 2 Early 2023"]
[White "Preotu, Razvan"]
[Black "Shuvalov, Evgenij"]
[WhiteFideId "2613280"]
[BlackFideId "4187237"]
[WhiteElo "2407"]
[BlackElo "2080"]
[Result "1-0"]
[Round "05"]
[TimeControl "180+2"]
[Date "2023.05.02"]
[WhiteClock "0:00:17"]
[BlackClock "0:00:22"]

1. e4 {[%clk 0:03:00]}  e6 {[%clk 0:02:59]} 2. d4 {[%clk 0:03:00]}  d5 {[%clk 0:03:00]} 3. Nc3 {[%clk 0:03:01]}  Bb4 {[%clk 0:02:59]} 4. e5 {[%clk 0:03:01]}  c5 {[%clk 0:03:00]} 5. a3 {[%clk 0:03:01]}  Bxc3+ {[%clk 0:03:00]} 6. bxc3 {[%clk 0:03:02]}  Ne7 {[%clk 0:03:00]} 7. h4 {[%clk 0:03:03]}  Qc7 {[%clk 0:03:00]} 8. Rb1 {[%clk 0:02:59]}  b6 {[%clk 0:02:49]} 9. h5 {[%clk 0:02:55]}  h6 {[%clk 0:02:48]} 10. Qg4 {[%clk 0:02:43]}  Rg8 {[%clk 0:02:48]} 11. Bb5+ {[%clk 0:02:34]}  Bd7 {[%clk 0:02:46]} 12. Bd3 {[%clk 0:02:34]}  Nbc6 {[%clk 0:02:28]} 13. Nf3 {[%clk 0:02:31]}  Kf8 {[%clk 0:02:11]} 14. O-O {[%clk 0:02:07]}  Na5 {[%clk 0:02:01]} 15. dxc5 {[%clk 0:01:24]}  bxc5 {[%clk 0:01:53]} 16. Be3 {[%clk 0:01:21]}  c4 {[%clk 0:01:47]} 17. Be2 {[%clk 0:01:18]}  Nf5 {[%clk 0:01:44]} 18. Bd4 {[%clk 0:00:36]}  Ba4 {[%clk 0:01:38]} 19. Rb2 {[%clk 0:00:35]}  Nc6 {[%clk 0:01:34]} 20. Rfb1 {[%clk 0:00:36]}  Ncxd4 {[%clk 0:01:21]} 21. Nxd4 {[%clk 0:00:33]}  Nxd4 {[%clk 0:01:20]} 22. Qxd4 {[%clk 0:00:32]}  g5 {[%clk 0:01:03]} 23. Rb7 {[%clk 0:00:31]}  Qd8 {[%clk 0:00:54]} 24. Rxa7 {[%clk 0:00:27]}  Rxa7 {[%clk 0:00:52]} 25. Qxa7 {[%clk 0:00:28]}  Bd7 {[%clk 0:00:43]} 26. Rb8 {[%clk 0:00:28]}  Bc8 {[%clk 0:00:43]} 27. Bg4 {[%clk 0:00:20]}  Kg7 {[%clk 0:00:37]} 28. Bxe6 {[%clk 0:00:20]}  Bxe6 {[%clk 0:00:36]} 29. Rxd8 {[%clk 0:00:20]}  Rxd8 {[%clk 0:00:37]} 30. a4 {[%clk 0:00:17]}  Bf5 {[%clk 0:00:27]} 31. Qe7 {[%clk 0:00:15]}  Ra8 {[%clk 0:00:22]} 32. Qf6+ {[%clk 0:00:16]}  Kg8 {[%clk 0:00:23]} 33. Qxf5 {[%clk 0:00:16]}  Rxa4 {[%clk 0:00:23]} 34. e6 {[%clk 0:00:17]}  fxe6 {[%clk 0:00:23]} 35. Qxe6+ {[%clk 0:00:16]}  Kf8 {[%clk 0:00:22]} 36. Qf6+ {[%clk 0:00:16]}  Ke8 {[%clk 0:00:22]} 37. Qc6+ {[%clk 0:00:17]} 1-0


[Site "https://www.chess.com"]

[Event "Titled Tuesday Blitz May 2 Early 2023"]
[White "Lavrik, Dmitry"]
[Black "Castellanos Gomez, Alejandro"]
[WhiteFideId "24113190"]
[BlackFideId "22284141"]
[WhiteElo "2345"]
[BlackElo "2158"]
[Result "1-0"]
[Round "05"]
[TimeControl "180+2"]
[Date "2023.05.02"]
[WhiteClock "0:00:29"]
[BlackClock "0:00:04"]

1. c4 {[%clk 0:03:00]}  g6 {[%clk 0:02:56]} 2. g3 {[%clk 0:02:59]}  Bg7 {[%clk 0:02:57]} 3. Bg2 {[%clk 0:03:00]}  c6 {[%clk 0:02:57]} 4. Nc3 {[%clk 0:02:52]}  Nf6 {[%clk 0:02:56]} 5. Qb3 {[%clk 0:02:53]}  Na6 {[%clk 0:02:56]} 6. d4 {[%clk 0:02:52]}  e5 {[%clk 0:02:46]} 7. dxe5 {[%clk 0:02:48]}  Ng4 {[%clk 0:02:46]} 8. h3 {[%clk 0:02:20]}  Nxe5 {[%clk 0:02:29]} 9. f4 {[%clk 0:02:18]}  Nc5 {[%clk 0:02:29]} 10. Qa3 {[%clk 0:02:19]}  Bf8 {[%clk 0:02:12]} 11. fxe5 {[%clk 0:02:18]}  Nd3+ {[%clk 0:02:11]} 12. exd3 {[%clk 0:02:19]}  Bxa3 {[%clk 0:02:11]} 13. bxa3 {[%clk 0:02:20]}  Qa5 {[%clk 0:02:01]} 14. Bb2 {[%clk 0:02:18]}  O-O {[%clk 0:01:54]} 15. Nf3 {[%clk 0:02:15]}  Re8 {[%clk 0:01:55]} 16. O-O-O {[%clk 0:02:14]}  b5 {[%clk 0:01:30]} 17. cxb5 {[%clk 0:02:11]}  Rb8 {[%clk 0:01:30]} 18. Nd2 {[%clk 0:02:05]}  Rxb5 {[%clk 0:00:51]} 19. Nxb5 {[%clk 0:01:57]}  cxb5 {[%clk 0:00:49]} 20. Ne4 {[%clk 0:01:52]}  Re6 {[%clk 0:00:45]} 21. Nd6 {[%clk 0:01:50]}  b4 {[%clk 0:00:28]} 22. axb4 {[%clk 0:01:15]}  Qxb4 {[%clk 0:00:29]} 23. Rhe1 {[%clk 0:01:15]}  Ba6 {[%clk 0:00:28]} 24. Re4 {[%clk 0:01:10]}  Qc5+ {[%clk 0:00:23]} 25. Kb1 {[%clk 0:01:08]}  Qf2 {[%clk 0:00:23]} 26. Bh1 {[%clk 0:01:03]}  Qxg3 {[%clk 0:00:20]} 27. Rd4 {[%clk 0:00:38]}  Qxh3 {[%clk 0:00:11]} 28. Bd5 {[%clk 0:00:34]}  Qh5 {[%clk 0:00:04]} 29. Bb3 {[%clk 0:00:29]} 1-0


[Site "https://www.chess.com"]

[Event "Titled Tuesday Blitz May 2 Early 2023"]
[White "Kucuksari, Kaan"]
[Black "Arpita, Mukherjee"]
[WhiteFideId "6380166"]
[BlackFideId "5056403"]
[WhiteElo "2364"]
[BlackElo "2129"]
[Result "1-0"]
[Round "05"]
[TimeControl "180+2"]
[Date "2023.05.02"]
[WhiteClock "0:00:10"]
[BlackClock "0:00:11"]

1. e4 {[%clk 0:03:00]}  c5 {[%clk 0:02:58]} 2. Nf3 {[%clk 0:03:00]}  d6 {[%clk 0:02:58]} 3. d4 {[%clk 0:03:01]}  cxd4 {[%clk 0:02:58]} 4. Nxd4 {[%clk 0:03:01]}  Nf6 {[%clk 0:02:58]} 5. Nc3 {[%clk 0:03:01]}  a6 {[%clk 0:02:59]} 6. f3 {[%clk 0:02:58]}  e5 {[%clk 0:02:58]} 7. Nb3 {[%clk 0:02:58]}  Be7 {[%clk 0:02:58]} 8. Be3 {[%clk 0:02:58]}  Be6 {[%clk 0:02:59]} 9. Qe2 {[%clk 0:02:55]}  h5 {[%clk 0:02:57]} 10. O-O-O {[%clk 0:02:55]}  Nbd7 {[%clk 0:02:58]} 11. Kb1 {[%clk 0:02:54]}  Rc8 {[%clk 0:02:58]} 12. h3 {[%clk 0:02:38]}  h4 {[%clk 0:02:56]} 13. f4 {[%clk 0:02:26]}  Rxc3 {[%clk 0:02:45]} 14. bxc3 {[%clk 0:02:27]}  Nxe4 {[%clk 0:02:45]} 15. Qd3 {[%clk 0:02:23]}  Bf5 {[%clk 0:02:38]} 16. Kb2 {[%clk 0:02:00]}  Ng3 {[%clk 0:02:35]} 17. Qd5 {[%clk 0:01:54]}  Nxh1 {[%clk 0:02:32]} 18. g4 {[%clk 0:01:44]}  hxg3 {[%clk 0:02:27]} 19. Qxh1 {[%clk 0:01:44]}  O-O {[%clk 0:02:22]} 20. Qf3 {[%clk 0:01:40]}  a5 {[%clk 0:02:12]} 21. fxe5 {[%clk 0:01:35]}  Bg6 {[%clk 0:02:08]} 22. exd6 {[%clk 0:01:34]}  Bf6 {[%clk 0:02:08]} 23. Qxg3 {[%clk 0:01:30]}  a4 {[%clk 0:02:06]} 24. Nd4 {[%clk 0:01:26]}  a3+ {[%clk 0:01:57]} 25. Kc1 {[%clk 0:01:21]}  Qa5 {[%clk 0:01:50]} 26. Bf4 {[%clk 0:00:54]}  Rc8 {[%clk 0:01:39]} 27. Nb3 {[%clk 0:00:30]}  Qh5 {[%clk 0:01:12]} 28. Qg4 {[%clk 0:00:17]}  Rxc3 {[%clk 0:01:11]} 29. Bd3 {[%clk 0:00:15]}  Bxd3 {[%clk 0:00:22]} 30. Rxd3 {[%clk 0:00:14]}  Qa5 {[%clk 0:00:17]} 31. Nxa5 {[%clk 0:00:09]}  Rxd3 {[%clk 0:00:11]} 32. cxd3 {[%clk 0:00:10]}  Nc5 {[%clk 0:00:12]} 33. Qc8+ {[%clk 0:00:09]}  Kh7 {[%clk 0:00:11]} 34. Qxc5 {[%clk 0:00:10]} 1-0


[Site "https://www.chess.com"]

[Event "Titled Tuesday Blitz May 2 Early 2023"]
[White "Stanojevic, Ilija"]
[Black "Kim, Sergey"]
[WhiteFideId "959995"]
[BlackFideId "13700570"]
[WhiteElo "2138"]
[BlackElo "2295"]
[Result "1/2-1/2"]
[Round "05"]
[TimeControl "180+2"]
[Date "2023.05.02"]
[WhiteClock "0:00:12"]
[BlackClock "0:00:30"]

1. d4 {[%clk 0:03:00]}  Nf6 {[%clk 0:02:59]} 2. c4 {[%clk 0:03:00]}  g6 {[%clk 0:02:59]} 3. Nc3 {[%clk 0:03:00]}  Bg7 {[%clk 0:03:00]} 4. g3 {[%clk 0:03:00]}  d6 {[%clk 0:03:00]} 5. Bg2 {[%clk 0:03:01]}  O-O {[%clk 0:03:00]} 6. Nf3 {[%clk 0:03:01]}  Nbd7 {[%clk 0:03:00]} 7. O-O {[%clk 0:03:01]}  e5 {[%clk 0:03:01]} 8. e4 {[%clk 0:03:02]}  exd4 {[%clk 0:03:01]} 9. Nxd4 {[%clk 0:03:03]}  Re8 {[%clk 0:03:01]} 10. h3 {[%clk 0:03:03]}  Nc5 {[%clk 0:03:01]} 11. Re1 {[%clk 0:03:03]}  c6 {[%clk 0:03:01]} 12. Rb1 {[%clk 0:02:39]}  a5 {[%clk 0:02:58]} 13. b3 {[%clk 0:02:31]}  Nfd7 {[%clk 0:02:57]} 14. f4 {[%clk 0:02:16]}  Nf8 {[%clk 0:02:48]} 15. Be3 {[%clk 0:02:09]}  Qc7 {[%clk 0:02:40]} 16. Bf2 {[%clk 0:02:08]}  Nfe6 {[%clk 0:02:36]} 17. Kh2 {[%clk 0:01:57]}  Nxd4 {[%clk 0:02:22]} 18. Bxd4 {[%clk 0:01:58]}  Bf8 {[%clk 0:02:21]} 19. Bxc5 {[%clk 0:01:53]}  dxc5 {[%clk 0:02:21]} 20. e5 {[%clk 0:01:53]}  Bg7 {[%clk 0:02:16]} 21. Rb2 {[%clk 0:01:06]}  Bf5 {[%clk 0:02:14]} 22. Rd2 {[%clk 0:01:05]}  Rad8 {[%clk 0:02:12]} 23. Be4 {[%clk 0:01:00]}  Bc8 {[%clk 0:02:09]} 24. Rd6 {[%clk 0:00:44]}  f6 {[%clk 0:02:05]} 25. Rxd8 {[%clk 0:00:27]}  Rxd8 {[%clk 0:02:03]} 26. Qc2 {[%clk 0:00:28]}  fxe5 {[%clk 0:02:02]} 27. f5 {[%clk 0:00:28]}  gxf5 {[%clk 0:01:49]} 28. Bxf5 {[%clk 0:00:29]}  Bxf5 {[%clk 0:01:49]} 29. Qxf5 {[%clk 0:00:30]}  Qd7 {[%clk 0:01:49]} 30. Qxd7 {[%clk 0:00:21]}  Rxd7 {[%clk 0:01:49]} 31. Ne4 {[%clk 0:00:22]}  b6 {[%clk 0:01:45]} 32. Kg2 {[%clk 0:00:22]}  Rd3 {[%clk 0:01:45]} 33. Re2 {[%clk 0:00:20]}  h6 {[%clk 0:01:30]} 34. g4 {[%clk 0:00:20]}  Kf7 {[%clk 0:01:30]} 35. Rd2 {[%clk 0:00:10]}  Rd4 {[%clk 0:01:27]} 36. Kf3 {[%clk 0:00:09]}  Ke6 {[%clk 0:01:26]} 37. h4 {[%clk 0:00:09]}  Bf8 {[%clk 0:01:25]} 38. h5 {[%clk 0:00:08]}  Be7 {[%clk 0:01:24]} 39. Ke3 {[%clk 0:00:06]}  b5 {[%clk 0:01:21]} 40. Kf3 {[%clk 0:00:04]}  a4 {[%clk 0:01:20]} 41. cxb5 {[%clk 0:00:04]}  cxb5 {[%clk 0:01:19]} 42. bxa4 {[%clk 0:00:05]}  bxa4 {[%clk 0:01:18]} 43. Ng3 {[%clk 0:00:05]}  Bg5 {[%clk 0:01:16]} 44. Rxd4 {[%clk 0:00:04]}  exd4 {[%clk 0:01:15]} 45. Ke4 {[%clk 0:00:04]}  Be3 {[%clk 0:01:04]} 46. Nf5 {[%clk 0:00:04]}  Bg5 {[%clk 0:01:00]} 47. Ng3 {[%clk 0:00:05]}  Kd6 {[%clk 0:01:00]} 48. Nf5+ {[%clk 0:00:05]}  Kc6 {[%clk 0:01:00]} 49. Ng7 {[%clk 0:00:02]}  Kb5 {[%clk 0:00:57]} 50. Ne6 {[%clk 0:00:03]}  Bc1 {[%clk 0:00:56]} 51. g5 {[%clk 0:00:03]}  hxg5 {[%clk 0:00:48]} 52. h6 {[%clk 0:00:03]}  d3 {[%clk 0:00:49]} 53. Kxd3 {[%clk 0:00:02]}  g4 {[%clk 0:00:38]} 54. h7 {[%clk 0:00:02]}  Bb2 {[%clk 0:00:38]} 55. Ng5 {[%clk 0:00:02]}  g3 {[%clk 0:00:37]} 56. Nf3 {[%clk 0:00:02]}  Kb4 {[%clk 0:00:35]} 57. Kc2 {[%clk 0:00:02]}  Bg7 {[%clk 0:00:34]} 58. Kd3 {[%clk 0:00:03]}  g2 {[%clk 0:00:34]} 59. Kc2 {[%clk 0:00:03]}  Ka3 {[%clk 0:00:34]} 60. Kb1 {[%clk 0:00:03]}  c4 {[%clk 0:00:34]} 61. Ng1 {[%clk 0:00:03]}  Kb4 {[%clk 0:00:34]} 62. Kc2 {[%clk 0:00:03]}  a3 {[%clk 0:00:33]} 63. Ne2 {[%clk 0:00:03]}  Kc5 {[%clk 0:00:33]} 64. Kd2 {[%clk 0:00:03]}  Kd6 {[%clk 0:00:31]} 65. Ke3 {[%clk 0:00:03]}  Ke6 {[%clk 0:00:29]} 66. Kf3 {[%clk 0:00:04]}  c3 {[%clk 0:00:28]} 67. Kxg2 {[%clk 0:00:04]}  c2 {[%clk 0:00:28]} 68. Kf2 {[%clk 0:00:03]}  Kf5 {[%clk 0:00:28]} 69. Ke3 {[%clk 0:00:03]}  Kg6 {[%clk 0:00:27]} 70. Kd3 {[%clk 0:00:04]}  Kxh7 {[%clk 0:00:28]} 71. Kxc2 {[%clk 0:00:04]}  Kg6 {[%clk 0:00:28]} 72. Kb3 {[%clk 0:00:05]}  Bf8 {[%clk 0:00:27]} 73. Nc3 {[%clk 0:00:05]}  Kf5 {[%clk 0:00:27]} 74. Nb5 {[%clk 0:00:05]}  Ke6 {[%clk 0:00:27]} 75. Nxa3 {[%clk 0:00:06]}  Bxa3 {[%clk 0:00:26]} 76. Kxa3 {[%clk 0:00:07]}  Kd5 {[%clk 0:00:27]} 77. Kb4 {[%clk 0:00:08]}  Kc6 {[%clk 0:00:28]} 78. a4 {[%clk 0:00:09]}  Kb6 {[%clk 0:00:28]} 79. a5+ {[%clk 0:00:10]}  Ka6 {[%clk 0:00:28]} 80. Kc5 {[%clk 0:00:11]}  Kb7 {[%clk 0:00:29]} 81. Kd5 {[%clk 0:00:11]}  Ka6 {[%clk 0:00:29]} 82. Kd6 {[%clk 0:00:12]}  Kxa5 {[%clk 0:00:30]} 1/2-1/2


[Site "https://www.chess.com"]

[Event "Titled Tuesday Blitz May 2 Early 2023"]
[White "Arkell, Keith C"]
[Black "Pujari, Rucha"]
[WhiteFideId "400270"]
[BlackFideId "5024528"]
[WhiteElo "2319"]
[BlackElo "2129"]
[Result "1-0"]
[Round "05"]
[TimeControl "180+2"]
[Date "2023.05.02"]
[WhiteClock "0:02:26"]
[BlackClock "0:00:08"]

1. d4 {[%clk 0:02:55]}  d5 {[%clk 0:02:59]} 2. Nf3 {[%clk 0:02:53]}  Nf6 {[%clk 0:02:58]} 3. c4 {[%clk 0:02:54]}  e6 {[%clk 0:02:59]} 4. cxd5 {[%clk 0:02:55]}  exd5 {[%clk 0:02:59]} 5. Nc3 {[%clk 0:02:55]}  c6 {[%clk 0:02:57]} 6. Qc2 {[%clk 0:02:55]}  Bd6 {[%clk 0:02:54]} 7. Bg5 {[%clk 0:02:55]}  a5 {[%clk 0:02:52]} 8. Bxf6 {[%clk 0:02:54]}  gxf6 {[%clk 0:02:28]} 9. g3 {[%clk 0:02:52]}  Na6 {[%clk 0:02:27]} 10. a3 {[%clk 0:02:52]}  Nc7 {[%clk 0:02:24]} 11. Bg2 {[%clk 0:02:52]}  f5 {[%clk 0:02:21]} 12. e3 {[%clk 0:02:51]}  Qf6 {[%clk 0:02:16]} 13. O-O {[%clk 0:02:50]}  h5 {[%clk 0:02:15]} 14. h4 {[%clk 0:02:49]}  Ne6 {[%clk 0:02:08]} 15. Ne2 {[%clk 0:02:49]}  Bd7 {[%clk 0:02:02]} 16. Rfd1 {[%clk 0:02:48]}  Ke7 {[%clk 0:02:00]} 17. Nf4 {[%clk 0:02:48]}  Rag8 {[%clk 0:01:54]} 18. b4 {[%clk 0:02:42]}  axb4 {[%clk 0:01:45]} 19. axb4 {[%clk 0:02:42]}  Nxf4 {[%clk 0:01:30]} 20. exf4 {[%clk 0:02:42]}  Ra8 {[%clk 0:01:28]} 21. Rxa8 {[%clk 0:02:38]}  Rxa8 {[%clk 0:01:27]} 22. Ne5 {[%clk 0:02:36]}  Be6 {[%clk 0:00:22]} 23. b5 {[%clk 0:02:32]}  cxb5 {[%clk 0:00:18]} 24. Qb3 {[%clk 0:02:31]}  Ra5 {[%clk 0:00:12]} 25. Bxd5 {[%clk 0:02:28]}  Bxe5 {[%clk 0:00:10]} 26. dxe5 {[%clk 0:02:26]}  Qh8 {[%clk 0:00:08]} 27. Qb4+ {[%clk 0:02:26]} 1-0


[Site "https://www.chess.com"]

[Event "Titled Tuesday Blitz May 2 Early 2023"]
[White "Rottenwohrer Suarez, Juan"]
[Black "Pajeken, Jakob Leon"]
[WhiteFideId "32068182"]
[BlackFideId "12942839"]
[WhiteElo "2174"]
[BlackElo "2414"]
[Result "1-0"]
[Round "05"]
[TimeControl "180+2"]
[Date "2023.05.02"]
[WhiteClock "0:01:20"]
[BlackClock "0:02:07"]

1. Nf3 {[%clk 0:03:00]}  d5 {[%clk 0:02:58]} 2. g3 {[%clk 0:03:00]}  c5 {[%clk 0:02:51]} 3. Bg2 {[%clk 0:03:00]}  Nc6 {[%clk 0:02:50]} 4. d4 {[%clk 0:02:59]}  cxd4 {[%clk 0:02:45]} 5. Nxd4 {[%clk 0:03:00]}  e5 {[%clk 0:02:43]} 6. Nxc6 {[%clk 0:02:54]}  bxc6 {[%clk 0:02:43]} 7. c4 {[%clk 0:02:48]}  Be6 {[%clk 0:02:42]} 8. Nc3 {[%clk 0:02:38]}  Bb4 {[%clk 0:02:41]} 9. cxd5 {[%clk 0:02:32]}  Bxc3+ {[%clk 0:02:34]} 10. bxc3 {[%clk 0:02:33]}  cxd5 {[%clk 0:02:32]} 11. c4 {[%clk 0:02:08]}  Ne7 {[%clk 0:02:29]} 12. O-O {[%clk 0:01:57]}  Rc8 {[%clk 0:02:21]} 13. Qa4+ {[%clk 0:01:47]}  Qd7 {[%clk 0:02:20]} 14. Qxd7+ {[%clk 0:01:45]}  Kxd7 {[%clk 0:02:21]} 15. cxd5 {[%clk 0:01:45]}  Bxd5 {[%clk 0:02:20]} 16. Rd1 {[%clk 0:01:35]}  Kc6 {[%clk 0:02:11]} 17. Bh3 {[%clk 0:01:22]}  f5 {[%clk 0:02:07]} 18. Ba3 {[%clk 0:01:20]} 1-0


[Site "https://www.chess.com"]

[Event "Titled Tuesday Blitz May 2 Early 2023"]
[White "Iskusnyh, Sergei"]
[Black "Dinu, Dumitru-Daniel"]
[WhiteFideId "4120027"]
[BlackFideId "1208403"]
[WhiteElo "2492"]
[BlackElo "2240"]
[Result "0-1"]
[Round "05"]
[TimeControl "180+2"]
[Date "2023.05.02"]
[WhiteClock "0:00:09"]
[BlackClock "0:00:10"]

1. d4 {[%clk 0:03:00]}  Nf6 {[%clk 0:02:59]} 2. c4 {[%clk 0:03:00]}  e6 {[%clk 0:02:58]} 3. g3 {[%clk 0:02:59]}  Bb4+ {[%clk 0:02:56]} 4. Bd2 {[%clk 0:02:58]}  a5 {[%clk 0:02:54]} 5. Bg2 {[%clk 0:02:57]}  O-O {[%clk 0:02:55]} 6. Nc3 {[%clk 0:02:54]}  d6 {[%clk 0:02:42]} 7. Nf3 {[%clk 0:02:48]}  b6 {[%clk 0:02:42]} 8. O-O {[%clk 0:02:43]}  Bb7 {[%clk 0:02:41]} 9. Qc2 {[%clk 0:02:40]}  Bxc3 {[%clk 0:02:41]} 10. Bxc3 {[%clk 0:02:39]}  Nbd7 {[%clk 0:02:39]} 11. Rad1 {[%clk 0:02:31]}  Qe7 {[%clk 0:02:35]} 12. b3 {[%clk 0:02:12]}  Ne4 {[%clk 0:02:32]} 13. Bb2 {[%clk 0:02:10]}  f5 {[%clk 0:02:29]} 14. d5 {[%clk 0:01:57]}  Ndc5 {[%clk 0:02:23]} 15. dxe6 {[%clk 0:01:53]}  Qxe6 {[%clk 0:02:15]} 16. Nd4 {[%clk 0:01:52]}  Qg6 {[%clk 0:02:13]} 17. Nb5 {[%clk 0:01:14]}  Rac8 {[%clk 0:02:08]} 18. a3 {[%clk 0:00:56]}  Na6 {[%clk 0:01:42]} 19. Ba1 {[%clk 0:00:25]}  Rce8 {[%clk 0:01:35]} 20. e3 {[%clk 0:00:19]}  h5 {[%clk 0:00:58]} 21. Qb2 {[%clk 0:00:17]}  h4 {[%clk 0:00:54]} 22. b4 {[%clk 0:00:17]}  axb4 {[%clk 0:00:51]} 23. axb4 {[%clk 0:00:18]}  hxg3 {[%clk 0:00:41]} 24. hxg3 {[%clk 0:00:18]}  Ba8 {[%clk 0:00:23]} 25. Qa3 {[%clk 0:00:17]}  Bb7 {[%clk 0:00:23]} 26. Rfe1 {[%clk 0:00:16]}  Re7 {[%clk 0:00:22]} 27. Qb3 {[%clk 0:00:16]}  Rfe8 {[%clk 0:00:20]} 28. c5+ {[%clk 0:00:15]}  Kh8 {[%clk 0:00:18]} 29. cxd6 {[%clk 0:00:15]}  cxd6 {[%clk 0:00:19]} 30. Nd4 {[%clk 0:00:13]}  Nxg3 {[%clk 0:00:16]} 31. fxg3 {[%clk 0:00:12]}  Qxg3 {[%clk 0:00:16]} 32. Qb2 {[%clk 0:00:12]}  Rxe3 {[%clk 0:00:15]} 33. Rxe3 {[%clk 0:00:12]}  Rxe3 {[%clk 0:00:14]} 34. Nf3 {[%clk 0:00:10]}  Bxf3 {[%clk 0:00:12]} 35. Qxg7+ {[%clk 0:00:09]}  Qxg7 {[%clk 0:00:12]} 36. Bxg7+ {[%clk 0:00:10]}  Kxg7 {[%clk 0:00:13]} 37. Kf2 {[%clk 0:00:10]}  Bxd1 {[%clk 0:00:10]} 38. Kxe3 {[%clk 0:00:09]}  Nxb4 {[%clk 0:00:11]} 39. Kd4 {[%clk 0:00:10]}  Kf6 {[%clk 0:00:10]} 40. Kc4 {[%clk 0:00:09]}  Nc2 {[%clk 0:00:10]} 41. Kb5 {[%clk 0:00:09]}  f4 {[%clk 0:00:10]} 42. Kxb6 {[%clk 0:00:09]}  f3 {[%clk 0:00:10]} 43. Bxf3 {[%clk 0:00:09]}  Bxf3 {[%clk 0:00:10]} 0-1


[Site "https://www.chess.com"]